bitfinex-derivatives/quotes_BTCF0:USTF0_20250528
["timestamp","ask_amount","ask_price","bid_price","bid_amount"]
[1748458583632,1.11381329,107470.0,107460.0,2.08821963]
[1748458583844,1.11381329,107470.0,107460.0,0.49769108]
[1748458584135,2.06586365,107470.0,107460.0,0.10162868]
[1748458584336,1.95060805,107470.0,107460.0,0.10150868]
[1748458584543,1.97281165,107470.0,107460.0,0.10150868]
[1748458584735,1.88636995,107470.0,107460.0,0.1016241]
[1748458584937,1.88636995,107470.0,107460.0,0.08742555]
[1748458585153,1.97942195,107470.0,107460.0,0.08742555]
[1748458585333,1.97942195,107470.0,107460.0,0.1015038]
[1748458585540,1.88836995,107470.0,107460.0,0.08730555]
[1748458585742,1.88836995,107470.0,107460.0,0.10150371]
[1748458586244,1.89036995,107470.0,107460.0,0.10162371]
[1748458586637,1.89036995,107470.0,107460.0,0.10161517]
[1748458587746,1.69704022,107470.0,107460.0,0.10161517]
[1748458587937,1.89036995,107470.0,107460.0,0.10161517]
[1748458588137,1.89036995,107470.0,107460.0,0.02161225]
[1748458588347,1.97671035,107470.0,107460.0,0.00742555]
[1748458588550,1.22578062,107470.0,107460.0,0.21767405]
[1748458588748,1.66844502,107470.0,107460.0,0.39767385]
[1748458589042,1.66844502,107470.0,107460.0,0.39767378]
[1748458589247,1.66844502,107470.0,107460.0,0.39767377]
[1748458590141,1.66844502,107470.0,107460.0,0.38348735]
[1748458590335,1.11052502,107470.0,107460.0,0.39767232]
[1748458590532,1.7256785,107470.0,107460.0,0.64051708]
[1748458590746,1.3648785,107470.0,107460.0,1.01550177]
[1748458590949,1.2785381,107470.0,107460.0,1.01550177]
[1748458591148,1.2785381,107470.0,107460.0,0.65470177]
[1748458591548,1.2785381,107470.0,107460.0,0.46137204]
[1748458591747,1.2785381,107470.0,107460.0,1.96137204]
[1748458592045,1.2785381,107470.0,107460.0,1.96137309]
[1748458592247,1.2785381,107470.0,107460.0,1.9613731]
[1748458592442,1.2785381,107470.0,107460.0,1.96137309]
[1748458593249,1.2785381,107470.0,107460.0,1.96137373]
[1748458593642,1.2785381,107470.0,107460.0,1.96137411]
[1748458593842,1.2785381,107470.0,107460.0,1.94718735]
[1748458594042,1.2785381,107470.0,107460.0,1.96137411]
[1748458594244,1.2785381,107470.0,107460.0,2.15470384]
[1748458594245,0.8317781,107470.0,107460.0,2.15470384]
[1748458594451,0.112693,107470.0,107460.0,2.56054578]
[1748458594652,0.22118502,107470.0,107460.0,2.57473295]
[1748458594852,0.66718502,107470.0,107460.0,2.57473295]
[1748458595343,0.66714502,107470.0,107460.0,2.57473295]
[1748458595539,0.66714502,107470.0,107460.0,2.57473405]
[1748458595745,0.66714502,107470.0,107460.0,2.56054578]
[1748458596150,0.66714502,107470.0,107460.0,2.57473675]
[1748458596651,0.66682502,107470.0,107460.0,2.57473675]
[1748458596851,0.66682502,107470.0,107460.0,2.56054578]
[1748458597152,0.66682502,107470.0,107460.0,2.57473675]
[1748458597950,0.66682502,107470.0,107460.0,2.38140702]
[1748458598149,0.66682502,107470.0,107460.0,2.57473675]
[1748458598453,0.66682502,107470.0,107460.0,2.38141151]
[1748458598649,0.66682502,107470.0,107460.0,2.57474124]
[1748458599052,0.66682502,107470.0,107460.0,2.38141151]
[1748458599757,0.66682502,107470.0,107460.0,2.57474503]
[1748458600256,0.66682502,107470.0,107460.0,2.57474635]
[1748458600453,0.66682502,107470.0,107460.0,2.57474637]
[1748458601242,0.19018502,107470.0,107460.0,2.57474637]
[1748458601455,0.19018502,107470.0,107460.0,2.88237342]
[1748458601754,0.00413952,107470.0,107460.0,2.93922662]
[1748458601947,0.00413952,107470.0,107460.0,1.67726672]
[1748458601948,0.44937952,107470.0,107460.0,1.67726672]
[1748458602157,0.44937952,107470.0,107460.0,1.77853734]
[1748458602345,0.44937952,107470.0,107460.0,3.27852633]
[1748458602745,0.00413952,107470.0,107460.0,3.27852633]
[1748458603046,0.44941952,107470.0,107460.0,3.27852189]
[1748458603246,0.44941952,107470.0,107460.0,3.26432644]
[1748458603445,0.44941952,107470.0,107460.0,3.27852193]
[1748458603748,0.44541952,107470.0,107460.0,3.27852193]
[1748458604250,0.44541952,107470.0,107460.0,3.23321172]
[1748458604751,0.00013952,107470.0,107460.0,3.31206823]
[1748458605055,0.18740717,107490.0,107480.0,0.1860282]
[1748458605256,0.63212717,107490.0,107480.0,1.50431135]
[1748458605556,0.18740717,107490.0,107480.0,1.56821135]
[1748458605752,0.6306109,107490.0,107480.0,1.20741135]
[1748458605959,0.6306109,107490.0,107480.0,1.20740539]
[1748458606154,0.6306109,107490.0,107480.0,1.20740437]
[1748458606348,0.6326109,107490.0,107480.0,1.20740438]
[1748458606661,0.6637109,107490.0,107480.0,1.20740465]
[1748458607560,0.6637109,107490.0,107480.0,1.20740005]
[1748458607748,0.6657109,107490.0,107480.0,1.19322356]
[1748458608059,0.6657109,107490.0,107480.0,1.21018634]
[1748458609257,0.6657109,107490.0,107480.0,1.21018319]
[1748458609451,0.6657109,107490.0,107480.0,1.19601356]
[1748458609646,0.6657109,107490.0,107480.0,1.2101832]
[1748458610250,0.1900109,107490.0,107480.0,1.2101832]
[1748458610458,0.6340509,107490.0,107480.0,1.4901832]
[1748458610659,0.6340509,107490.0,107480.0,1.4901818]
[1748458610859,0.6640509,107490.0,107480.0,2.9901818]
[1748458611263,0.6640509,107490.0,107480.0,2.99469508]
[1748458611559,0.004,107490.0,107480.0,2.99469508]
[1748458611761,0.6338109,107490.0,107480.0,3.35549508]
[1748458612260,0.004,107490.0,107480.0,3.35549277]
[1748458612646,0.004,107490.0,107480.0,3.3554925]
[1748458613043,0.004,107490.0,107480.0,3.35549016]
[1748458613454,0.002,107490.0,107480.0,3.35549018]
[1748458613753,0.44544,107490.0,107480.0,3.35549018]
[1748458613962,0.44544,107490.0,107480.0,3.35548899]
[1748458614259,0.44544,107490.0,107480.0,3.3554893]
[1748458614560,0.21613322,107500.0,107480.0,3.3554893]
[1748458614561,0.44333952,107500.0,107490.0,0.1860109]
[1748458614766,0.00013952,107500.0,107490.0,1.64163055]
[1748458614953,0.44357952,107500.0,107490.0,1.70067128]
[1748458615258,0.44353952,107500.0,107490.0,1.70067128]
[1748458615460,0.00013952,107500.0,107490.0,1.70067128]
[1748458615646,0.00013952,107500.0,107490.0,1.72994743]
[1748458615852,0.44545952,107500.0,107490.0,1.74410289]
[1748458616250,0.44345952,107500.0,107490.0,3.24410289]
[1748458616451,0.62945332,107500.0,107490.0,3.05077316]
[1748458616649,0.47495952,107500.0,107490.0,3.00733682]
[1748458616861,0.47495952,107500.0,107490.0,3.20078655]
[1748458617363,0.47495952,107500.0,107490.0,3.20079875]
[1748458617559,0.47495952,107500.0,107490.0,3.20079869]
[1748458617865,0.47495952,107500.0,107490.0,3.20080193]
[1748458618162,0.47495952,107500.0,107490.0,3.24423827]
[1748458618163,0.00013952,107500.0,107490.0,3.24423827]
[1748458618756,0.00013952,107500.0,107490.0,3.30224379]
[1748458619162,0.00013952,107500.0,107490.0,3.30224312]
[1748458619464,0.00013952,107500.0,107490.0,3.3032431]
[1748458619661,0.00013952,107500.0,107490.0,3.3052431]
[1748458619859,0.00013952,107500.0,107490.0,3.26180676]
[1748458620060,0.00013952,107500.0,107490.0,3.30518835]
[1748458620364,0.00013952,107500.0,107490.0,3.30518514]
[1748458620667,0.00013952,107500.0,107490.0,3.30797516]
[1748458620866,0.00013952,107500.0,107490.0,3.24996971]
[1748458621271,0.00013952,107500.0,107490.0,3.2938082]
[1748458621568,0.00013952,107500.0,107490.0,3.24997125]
[1748458622568,0.00013952,107500.0,107490.0,3.23580268]
[1748458622764,0.00013952,107500.0,107490.0,3.24997379]
[1748458622965,0.00013952,107500.0,107490.0,3.2499744]
[1748458624062,0.00013952,107500.0,107490.0,3.20659104]
[1748458624262,0.00013952,107500.0,107490.0,3.3079836]
[1748458624462,0.00013952,107500.0,107490.0,3.30798354]
[1748458624860,0.00013952,107500.0,107490.0,3.24997802]
[1748458625062,0.00013952,107500.0,107490.0,3.26193605]
[1748458625256,0.00013952,107500.0,107490.0,3.31994157]
[1748458625566,0.00013952,107500.0,107490.0,3.31028335]
[1748458625766,0.00013952,107500.0,107490.0,3.3244548]
[1748458626163,0.00013952,107500.0,107490.0,3.31028335]
[1748458626364,0.00013952,107500.0,107490.0,3.32445721]
[1748458626871,0.03023952,107500.0,107490.0,3.26645169]
[1748458627172,0.03023952,107500.0,107490.0,3.2544708]
[1748458627669,0.03023952,107500.0,107490.0,3.2402973]
[1748458627967,0.03023952,107500.0,107490.0,3.3124794]
[1748458628369,0.03023952,107500.0,107490.0,3.3124792]
[1748458628869,0.03023952,107500.0,107490.0,3.31247888]
[1748458629276,0.00013952,107500.0,107490.0,3.31248309]
[1748458629458,2e-08,107500.0,107490.0,3.31248301]
[1748458629665,2e-08,107500.0,107490.0,3.36212781]
[1748458629860,2e-08,107500.0,107490.0,3.35992819]
[1748458630073,2e-08,107500.0,107490.0,3.44520372]
[1748458630276,2e-08,107500.0,107490.0,3.47634372]
[1748458630578,2e-08,107500.0,107490.0,3.51977277]
[1748458630874,2e-08,107500.0,107490.0,3.20032108]
[1748458631173,0.03130002,107500.0,107490.0,3.20044653]
[1748458631377,0.09620002,107500.0,107490.0,3.18614075]
[1748458631569,0.09620002,107500.0,107490.0,3.2714453]
[1748458631763,0.09620002,107500.0,107490.0,3.25725951]
[1748458631971,0.09620002,107500.0,107490.0,3.2714453]
[1748458632169,0.09620002,107500.0,107490.0,3.35672083]
[1748458632867,0.09620002,107500.0,107490.0,3.35670895]
[1748458633262,0.72439382,107500.0,107490.0,2.61519096]
[1748458633465,1.05439382,107500.0,107490.0,2.78840149]
[1748458633661,1.05439382,107500.0,107490.0,2.69937611]
[1748458633867,1.05439382,107500.0,107490.0,2.59672103]
[1748458634277,1.05439382,107500.0,107490.0,2.69937922]
[1748458634675,1.05439382,107500.0,107490.0,2.68520126]
[1748458635061,1.05439382,107500.0,107490.0,2.46262379]
[1748458635261,1.05439382,107500.0,107490.0,2.61177221]
[1748458635467,1.05439382,107500.0,107490.0,2.62595349]
[1748458635971,1.05439382,107500.0,107490.0,2.62495349]
[1748458636175,1.05539382,107500.0,107490.0,2.65505349]
[1748458636469,1.05539382,107500.0,107490.0,2.6550539]
[1748458636776,1.05539382,107500.0,107490.0,2.65305397]
[1748458636966,1.05539382,107500.0,107490.0,2.63887221]
[1748458637166,1.05539382,107500.0,107490.0,2.65305576]
[1748458637776,1.05539382,107500.0,107490.0,2.66305576]
[1748458638178,1.05539382,107500.0,107490.0,2.46972603]
[1748458638377,1.05539382,107500.0,107490.0,2.66305576]
[1748458638779,1.05539382,107500.0,107490.0,2.66305877]
[1748458639082,1.05539382,107500.0,107490.0,2.66305937]
[1748458639582,1.05539382,107500.0,107490.0,2.65305937]
[1748458640080,1.05539382,107500.0,107490.0,2.65306207]
[1748458640581,1.05539382,107500.0,107490.0,2.69654816]
[1748458640985,1.05539382,107500.0,107490.0,2.69655108]
[1748458641275,1.05539382,107500.0,107490.0,2.69657562]
[1748458641469,0.03230002,107500.0,107490.0,3.01079925]
[1748458641670,0.01421961,107510.0,107500.0,0.1859938]
[1748458641869,0.50886,107520.0,107510.0,0.1859765]
[1748458642070,0.50886,107520.0,107510.0,1.43121245]
[1748458642289,0.50886,107520.0,107510.0,2.93121245]
[1748458642583,0.033,107520.0,107510.0,3.01672954]
[1748458642779,0.47708,107520.0,107510.0,3.25357417]
[1748458643081,0.47708,107520.0,107510.0,3.22753906]
[1748458643082,0.002,107520.0,107510.0,3.22753906]
[1748458643285,0.002,107520.0,107510.0,3.18403336]
[1748458643581,0.44596,107520.0,107510.0,3.28348737]
[1748458643782,0.44596,107520.0,107510.0,3.28349031]
[1748458644381,0.44596,107520.0,107510.0,3.28628031]
[1748458644570,0.002,107520.0,107510.0,3.29812749]
[1748458644775,0.52365651,107530.0,107520.0,0.1859592]
[1748458645081,0.52365651,107530.0,107520.0,1.58657245]
[1748458645278,0.52365651,107530.0,107520.0,1.54307172]
[1748458645483,0.52365651,107530.0,107520.0,1.58657093]
[1748458645677,0.52365651,107530.0,107520.0,1.54307172]
[1748458646087,0.52565651,107530.0,107520.0,1.58657093]
[1748458646384,0.52705651,107530.0,107520.0,1.52740994]
[1748458646883,0.52705651,107530.0,107520.0,1.52740522]
[1748458647291,0.52705651,107530.0,107520.0,1.5274014]
[1748458647671,0.52705651,107530.0,107520.0,1.58652211]
[1748458647873,0.52705651,107530.0,107520.0,3.08652211]
[1748458648178,0.01824071,107530.0,107520.0,3.32224788]
[1748458648376,0.00413952,107530.0,107520.0,3.33643106]
[1748458648579,0.44741952,107530.0,107520.0,2.99501093]
[1748458648774,0.44741952,107530.0,107520.0,3.40752341]
[1748458648981,0.44741952,107530.0,107520.0,3.33642962]
[1748458649490,0.44341952,107530.0,107520.0,3.37820594]
[1748458649789,0.44341952,107530.0,107520.0,3.33638007]
[1748458650282,0.44341952,107530.0,107520.0,3.22191004]
[1748458650485,0.00013952,107530.0,107520.0,2.83525067]
[1748458650690,0.07555619,107530.0,107520.0,2.77723381]
[1748458650986,0.07555619,107530.0,107520.0,3.16401327]
[1748458651186,0.03233952,107530.0,107520.0,3.16401327]
[1748458651386,0.03233952,107530.0,107520.0,3.14983866]
[1748458652690,0.04617319,107530.0,107520.0,3.14983866]
[1748458655882,0.04617319,107530.0,107520.0,3.15435421]
[1748458656186,0.10947319,107530.0,107520.0,2.96102448]
[1748458656571,0.07667319,107530.0,107520.0,2.96102448]
[1748458656771,0.10947319,107530.0,107520.0,2.96102448]
[1748458658685,0.10947319,107530.0,107520.0,2.96381448]
[1748458659989,0.29541509,107530.0,107520.0,2.96381448]
[1748458660893,0.29541509,107530.0,107520.0,2.96369448]
[1748458661096,0.29541509,107530.0,107520.0,2.96381448]
[1748458661389,0.29541509,107530.0,107520.0,2.77048475]
[1748458661780,1.00621509,107530.0,107520.0,2.02413528]
[1748458662079,0.68860389,107530.0,107520.0,2.37768475]
[1748458662287,0.64541509,107530.0,107520.0,2.37768475]
[1748458662494,0.70296857,107530.0,107520.0,2.37756475]
[1748458662680,0.74612887,107530.0,107520.0,2.57101448]
[1748458662885,0.74612887,107530.0,107520.0,2.58101448]
[1748458663293,0.74612887,107530.0,107520.0,2.57101448]
[1748458663695,0.76467069,107530.0,107520.0,2.57101448]
[1748458664483,0.76467069,107530.0,107520.0,2.37768475]
[1748458665890,1.20639069,107530.0,107520.0,2.37768475]
[1748458667598,1.20639069,107530.0,107520.0,2.57101448]
[1748458669003,1.20639069,107530.0,107520.0,2.12822555]
[1748458669301,1.64526482,107530.0,107520.0,0.26730555]
[1748458669493,1.64526482,107530.0,107520.0,0.45326475]
[1748458669494,1.09113509,107530.0,107520.0,0.45326475]
[1748458669801,1.09113509,107530.0,107520.0,1.95338475]
[1748458670790,1.09045509,107530.0,107520.0,2.14671448]
[1748458671903,0.64941509,107530.0,107520.0,2.50751448]
[1748458672201,1.09041509,107530.0,107520.0,2.56901448]
[1748458672400,1.09041509,107530.0,107520.0,2.60171448]
[1748458674105,1.05761509,107530.0,107520.0,2.60171448]
[1748458674497,1.08881509,107530.0,107520.0,2.60171448]
[1748458675796,0.64781509,107530.0,107520.0,2.60171448]
[1748458676101,1.05709509,107530.0,107520.0,2.60171448]
[1748458679203,1.05509509,107530.0,107520.0,2.60171448]
[1748458679505,1.05709509,107530.0,107520.0,2.60171448]
[1748458680204,0.58611509,107530.0,107520.0,2.60171448]
[1748458680403,0.49009319,107530.0,107520.0,2.79504421]
[1748458680703,0.67603509,107530.0,107520.0,2.98171448]
[1748458680902,0.67599509,107530.0,107520.0,2.98171448]
[1748458683491,0.23611509,107530.0,107520.0,3.17504421]
[1748458683694,0.67547509,107530.0,107520.0,2.66171448]
[1748458683894,0.79089527,107530.0,107520.0,2.66171448]
[1748458684303,0.79089527,107530.0,107520.0,0.96838475]
[1748458684710,0.82279527,107530.0,107520.0,1.16171448]
[1748458684904,0.82279527,107530.0,107520.0,1.16159448]
[1748458685100,1.21070482,107530.0,107520.0,0.45338475]
[1748458685299,1.35496749,107530.0,107520.0,0.26730555]
[1748458685610,1.96450482,107530.0,107520.0,0.02742555]
[1748458685803,1.96450482,107530.0,107520.0,0.02730555]
[1748458686000,1.96450482,107530.0,107520.0,0.02742555]
[1748458686213,1.96450482,107530.0,107520.0,0.21338475]
[1748458686618,2.16647256,107530.0,107520.0,0.21338475]
[1748458687209,1.91647256,107530.0,107520.0,0.21338475]
[1748458687710,1.71450482,107530.0,107520.0,0.21338475]
[1748458687908,1.8587314,107530.0,107520.0,0.21338475]
[1748458688313,1.8587314,107530.0,107520.0,0.27798475]
[1748458688511,1.13304167,107530.0,107520.0,0.27798475]
[1748458688713,1.68024167,107530.0,107520.0,0.27798475]
[1748458689908,1.8735714,107530.0,107520.0,0.02742555]
[1748458690309,1.8735714,107530.0,107520.0,0.21338475]
[1748458690505,1.9665714,107530.0,107520.0,0.21338475]
[1748458694315,1.9665714,107530.0,107520.0,0.02742555]
[1748458694917,1.9665714,107530.0,107520.0,0.21326475]
[1748458695117,1.9665714,107530.0,107520.0,0.21338475]
[1748458695925,1.22604167,107530.0,107520.0,0.21338475]
[1748458696106,1.62808167,107530.0,107520.0,0.46991448]
[1748458696312,1.62808167,107530.0,107520.0,0.50211448]
[1748458696623,1.26728167,107530.0,107520.0,0.75211448]
[1748458697517,1.26728167,107530.0,107520.0,0.55878475]
[1748458698722,1.26728167,107530.0,107520.0,0.57302062]
[1748458699314,1.26728167,107530.0,107520.0,2.07302062]
[1748458699511,1.26728167,107530.0,107520.0,2.07304039]
[1748458700020,1.26728167,107530.0,107520.0,2.07303961]
[1748458700824,1.4606114,107530.0,107520.0,2.07303961]
[1748458701515,1.4606114,107530.0,107520.0,2.04083961]
[1748458701711,1.8214114,107530.0,107520.0,2.04083493]
[1748458702019,1.82018482,107530.0,107520.0,0.02167568]
[1748458702418,2.02215256,107530.0,107520.0,0.04155568]
[1748458702618,1.92915256,107530.0,107520.0,0.22751488]
[1748458703121,1.92915256,107530.0,107520.0,0.04155568]
[1748458703323,1.92915256,107530.0,107520.0,0.04167457]
[1748458703524,1.92915256,107530.0,107520.0,0.22751397]
[1748458703819,1.92915256,107530.0,107520.0,0.22763379]
[1748458704018,1.92915256,107530.0,107520.0,0.04167459]
[1748458704524,1.92915256,107530.0,107520.0,0.22763379]
[1748458705119,1.92915256,107530.0,107520.0,0.22763383]
[1748458705319,1.92915256,107530.0,107520.0,0.04167463]
[1748458705617,1.92915256,107530.0,107520.0,0.02167463]
[1748458705822,1.92915256,107530.0,107520.0,0.02167437]
[1748458706020,1.92915256,107530.0,107520.0,0.20763347]
[1748458706325,1.92915256,107530.0,107520.0,0.20763337]
[1748458706521,1.92915256,107530.0,107520.0,0.24003334]
[1748458707119,2.07318736,107530.0,107520.0,0.02167424]
[1748458707325,2.07318736,107530.0,107520.0,5e-08]
[1748458707623,0.1859592,107520.0,107510.0,0.0325]
[1748458707830,1.45872357,107520.0,107510.0,0.08994908]
[1748458708025,1.45872357,107520.0,107510.0,0.27604565]
[1748458708432,1.45872357,107520.0,107510.0,0.27604564]
[1748458708931,1.25708893,107520.0,107510.0,0.27604564]
[1748458709627,1.25708893,107520.0,107510.0,0.26603585]
[1748458709836,1.25708893,107520.0,107510.0,0.26603584]
[1748458710037,1.25708893,107520.0,107510.0,0.26603686]
[1748458710424,1.25708893,107520.0,107510.0,0.26603676]
[1748458710936,1.0637592,107520.0,107510.0,0.26603676]
[1748458711234,1.25708893,107520.0,107510.0,0.26603676]
[1748458711439,1.25708893,107520.0,107510.0,0.26604026]
[1748458711927,1.25708893,107520.0,107510.0,0.26603978]
[1748458712127,1.25708893,107520.0,107510.0,0.26604236]
[1748458712327,1.25708893,107520.0,107510.0,0.26604222]
[1748458713039,1.40117015,107520.0,107510.0,0.28604222]
[1748458713632,1.40117015,107520.0,107510.0,0.2860421]
[1748458713831,1.40117015,107520.0,107510.0,0.2717965]
[1748458714838,1.40117015,107520.0,107510.0,0.27631205]
[1748458715743,1.25708893,107520.0,107510.0,0.27631205]
[1748458716334,1.25708893,107520.0,107510.0,0.09033555]
[1748458716536,1.40127435,107520.0,107510.0,0.09033555]
[1748458716734,1.40127435,107520.0,107510.0,0.27631205]
[1748458716933,1.25708893,107520.0,107510.0,0.09033555]
[1748458717137,1.25708893,107520.0,107510.0,0.27631205]
[1748458717936,1.25708893,107520.0,107510.0,0.09033555]
[1748458718138,1.25708893,107520.0,107510.0,0.27631205]
[1748458719540,1.5028392,107520.0,107510.0,0.27631205]
[1748458719736,1.69616893,107520.0,107510.0,0.27631205]
[1748458719937,1.84034244,107520.0,107510.0,0.27631205]
[1748458720138,1.58131271,107520.0,107510.0,0.27631205]
[1748458720334,1.58131271,107520.0,107510.0,0.36631205]
[1748458720335,1.61151271,107520.0,107510.0,0.36631205]
[1748458720538,1.64331271,107520.0,107510.0,0.36631205]
[1748458720733,1.83664244,107520.0,107510.0,0.36631205]
[1748458721644,1.83664244,107520.0,107510.0,0.18033555]
[1748458721645,1.69246893,107520.0,107510.0,0.18033555]
[1748458721942,0.1859765,107510.0,107500.0,0.00292952]
[1748458722139,1.43413237,107510.0,107500.0,0.00292952]
[1748458722332,1.28996623,107510.0,107500.0,0.00292952]
[1748458722949,1.43407829,107510.0,107500.0,0.00292952]
[1748458723136,1.28996623,107510.0,107500.0,0.00404952]
[1748458723440,1.28996623,107510.0,107500.0,0.00492952]
[1748458723649,1.28996623,107510.0,107500.0,0.00504952]
[1748458724145,0.9906765,107510.0,107500.0,0.19104332]
[1748458724336,1.72900623,107510.0,107500.0,0.18825332]
[1748458724646,1.87306249,107510.0,107500.0,0.21885332]
[1748458724946,1.67973276,107510.0,107500.0,0.21885332]
[1748458725141,1.87306249,107510.0,107500.0,0.28405332]
[1748458725846,1.32806249,107510.0,107500.0,0.28405332]
[1748458726150,1.87306249,107510.0,107500.0,0.29405332]
[1748458726538,1.32806249,107510.0,107500.0,0.29405332]
[1748458726738,1.28653276,107510.0,107500.0,0.63738305]
[1748458727546,1.28653276,107510.0,107500.0,0.44405332]
[1748458727842,1.28653276,107510.0,107500.0,1.94405332]
[1748458728044,1.31973276,107510.0,107500.0,1.94405332]
[1748458729948,0.88065276,107510.0,107500.0,1.94405332]
[1748458730149,0.84745276,107510.0,107500.0,2.5026986]
[1748458730449,1.23653276,107510.0,107500.0,2.30936887]
[1748458731249,1.05233276,107510.0,107500.0,1.94856887]
[1748458731445,1.59737276,107510.0,107500.0,1.94856887]
[1748458732345,1.82300249,107510.0,107500.0,1.94856887]
[1748458733046,1.67894623,107510.0,107500.0,1.94856887]
[1748458734547,1.4856165,107510.0,107500.0,1.94856887]
[1748458734742,1.1248165,107510.0,107500.0,1.94856887]
[1748458734945,1.21130235,107510.0,107500.0,1.94856887]
[1748458735450,1.1248165,107510.0,107500.0,1.94856887]
[1748458737445,1.21132579,107510.0,107500.0,1.94856887]
[1748458738654,1.17902579,107510.0,107500.0,1.94856887]
[1748458738841,0.63398579,107510.0,107500.0,2.1418986]
[1748458739047,1.17898579,107510.0,107500.0,2.5026986]
[1748458739342,1.23666701,107510.0,107500.0,2.5026986]
[1748458739751,0.14419051,107510.0,107500.0,2.5026986]
[1748458740048,0.11094434,107510.0,107500.0,2.5026986]
[1748458740238,0.73596074,107510.0,107500.0,2.30936887]
[1748458740439,0.76856074,107510.0,107500.0,2.30936887]
[1748458740644,0.72529762,107510.0,107500.0,2.33788539]
[1748458740940,0.72529762,107510.0,107500.0,2.5169567]
[1748458741149,0.72529762,107510.0,107500.0,2.53119018]
[1748458741539,0.72529762,107510.0,107500.0,2.5169567]
[1748458742143,0.72529762,107510.0,107500.0,2.53118969]
[1748458742762,0.72529762,107510.0,107500.0,2.53118747]
[1748458742948,0.72529762,107510.0,107500.0,2.53397747]
[1748458743149,0.72529762,107510.0,107500.0,2.53397642]
[1748458743649,0.72529762,107510.0,107500.0,2.5197467]
[1748458743850,0.72529762,107510.0,107500.0,2.53397596]
[1748458744052,0.72529762,107510.0,107500.0,2.5197467]
[1748458745058,0.72529762,107510.0,107500.0,2.53397604]
[1748458746357,0.72529762,107510.0,107500.0,2.53397398]
[1748458746547,0.72529762,107510.0,107500.0,1.96561697]
[1748458746751,1.19290691,107510.0,107500.0,1.99407183]
[1748458747058,1.19290691,107510.0,107500.0,1.99407195]
[1748458747059,1.22440691,107510.0,107500.0,1.99407195]
[1748458747246,1.16672569,107510.0,107500.0,1.99407195]
[1748458747442,1.16672569,107510.0,107500.0,1.99395195]
[1748458747659,1.16672569,107510.0,107500.0,1.99407195]
[1748458747856,1.16672569,107510.0,107500.0,1.99407254]
[1748458748357,1.16672569,107510.0,107500.0,1.97984426]
[1748458748545,1.16672569,107510.0,107500.0,1.99407178]
[1748458748742,1.16672569,107510.0,107500.0,2.54820151]
[1748458748943,1.26996744,107510.0,107500.0,2.54820151]
[1748458749454,1.26996744,107510.0,107500.0,2.54820183]
[1748458749656,1.26996744,107510.0,107500.0,2.3548721]
[1748458749657,0.72272744,107510.0,107500.0,2.3548721]
[1748458749955,1.26980744,107510.0,107500.0,2.54820152]
[1748458750158,0.72272744,107510.0,107500.0,2.54820148]
[1748458750354,1.26968744,107510.0,107500.0,2.54820144]
[1748458750860,1.26968744,107510.0,107500.0,2.54820118]
[1748458751053,0.82864744,107510.0,107500.0,2.54820118]
[1748458751254,1.18313815,107510.0,107500.0,2.53397399]
[1748458751459,1.18313815,107510.0,107500.0,2.54820108]
[1748458751763,1.18313815,107510.0,107500.0,2.54820033]
[1748458752464,0.74213815,107510.0,107500.0,2.54820033]
[1748458752655,1.18289815,107510.0,107500.0,2.54820033]
[1748458752860,1.18289815,107510.0,107500.0,2.54820094]
[1748458753063,1.18289815,107510.0,107500.0,2.53397399]
[1748458753263,0.74213815,107510.0,107500.0,2.54820094]
[1748458753450,1.18273815,107510.0,107500.0,2.54820093]
[1748458753762,0.5414835,107510.0,107500.0,2.54820093]
[1748458753951,0.1108835,107510.0,107500.0,2.54820093]
[1748458754159,0.5514035,107510.0,107500.0,2.54820093]
[1748458754356,0.7373791,107510.0,107500.0,2.54820093]
[1748458754548,0.5514035,107510.0,107500.0,2.64820506]
[1748458754760,0.5514035,107510.0,107500.0,2.63397399]
[1748458754956,0.5514035,107510.0,107500.0,2.64820504]
[1748458755161,0.1108835,107510.0,107500.0,2.64820504]
[1748458755353,0.5512035,107510.0,107500.0,2.63397399]
[1748458755656,0.1008835,107510.0,107500.0,1.39820644]
[1748458755860,0.48352175,107510.0,107500.0,1.39820644]
[1748458756262,0.48352175,107510.0,107500.0,2.89820644]
[1748458756461,0.04324175,107510.0,107500.0,2.88397399]
[1748458756661,0.48352175,107510.0,107500.0,2.89820633]
[1748458756851,0.48352175,107510.0,107500.0,2.95623606]
[1748458757058,0.48352175,107510.0,107500.0,2.95623603]
[1748458757259,0.04324175,107510.0,107500.0,2.95623603]
[1748458757478,0.48340175,107510.0,107500.0,2.95623603]
[1748458757856,0.48340175,107510.0,107500.0,2.89820603]
[1748458758167,0.48340175,107510.0,107500.0,2.89820606]
[1748458758357,0.48340175,107510.0,107500.0,2.89820604]
[1748458758548,0.48340175,107510.0,107500.0,2.88397399]
[1748458758756,0.48340175,107510.0,107500.0,2.89820606]
[1748458759257,0.04324175,107510.0,107500.0,2.89820606]
[1748458759456,0.1334835,107520.0,107510.0,0.1859767]
[1748458759658,0.5732835,107520.0,107510.0,1.0690385]
[1748458760851,0.5742835,107520.0,107510.0,1.0690385]
[1748458761055,0.5742835,107520.0,107510.0,1.06903222]
[1748458761262,0.5742835,107520.0,107510.0,1.0690323]
[1748458761463,0.5742835,107520.0,107510.0,1.05480643]
[1748458761669,0.51764175,107520.0,107510.0,1.06902981]
[1748458761968,0.70360075,107520.0,107510.0,1.06902981]
[1748458762161,0.51764175,107520.0,107510.0,1.06902981]
[1748458762565,0.04524175,107520.0,107510.0,1.29902981]
[1748458762767,0.48464175,107520.0,107510.0,1.29902981]
[1748458762963,0.48476175,107520.0,107510.0,1.28480643]
[1748458763162,0.44152,107520.0,107510.0,2.8428364]
[1748458763357,0.44152,107520.0,107510.0,2.85705781]
[1748458763562,0.002,107520.0,107510.0,2.85705785]
[1748458763764,0.44144,107520.0,107510.0,2.85705775]
[1748458764071,0.44144,107520.0,107510.0,2.85705765]
[1748458764372,0.44144,107520.0,107510.0,2.85705295]
[1748458764555,0.002,107520.0,107510.0,2.85705295]
[1748458764761,0.0349,107520.0,107510.0,2.85705295]
[1748458765065,0.0349,107520.0,107510.0,2.8570529]
[1748458765365,0.0349,107520.0,107510.0,2.85705295]
[1748458766559,0.0349,107520.0,107510.0,2.85705238]
[1748458766966,0.0349,107520.0,107510.0,2.79902241]
[1748458767166,0.0349,107520.0,107510.0,2.79901991]
[1748458767457,0.0349,107520.0,107510.0,2.79901992]
[1748458767867,0.0349,107520.0,107510.0,2.78480643]
[1748458768071,0.0349,107520.0,107510.0,2.79901823]
[1748458768469,0.0349,107520.0,107510.0,2.78480643]
[1748458768673,0.0349,107520.0,107510.0,2.79901825]
[1748458769273,0.0349,107520.0,107510.0,2.79901714]
[1748458769674,0.0349,107520.0,107510.0,2.79901632]
[1748458769967,0.0349,107520.0,107510.0,2.78480643]
[1748458770172,0.0349,107520.0,107510.0,2.7990163]
[1748458770374,0.0349,107520.0,107510.0,2.79901622]
[1748458771270,0.0349,107520.0,107510.0,2.79901526]
[1748458771769,0.0349,107520.0,107510.0,2.79901525]
[1748458772073,0.0349,107520.0,107510.0,2.79901526]
[1748458772671,0.0349,107520.0,107510.0,2.80180526]
[1748458772865,0.0349,107520.0,107510.0,2.80180457]